[Event "Kvibergspelen 2022"]
[Site "Kviberg Park Hotel & Conference, Krutvagen 2, Gothenburg, Sweden"]
[Date "2022.10.02"]
[Round "8.9"]
[White "Lindholm, Gustav"]
[Black "Burwick, Malte"]
[Result "0-1"]
[TimeControl "15 minutes + 5 seconds per move from move one (Round 1 - 4) / 90 minutes + 30 seconds per move from move one (Round 5 - 8)"]
[WhiteFideId "1736515"]
[BlackFideId "1702475"]
[WhiteElo "2026"]
[BlackElo "2225"]

1. d4 {[%clk 01:30:57]} {[%emt 00:00:02]} g6 {[%clk 01:30:29]} {[%emt
00:00:31]} 2. c4 {[%clk 01:31:19]} {[%emt 00:00:08]} Bg7 {[%clk 01:30:44]}
{[%emt 00:00:15]} 3. g3 {[%clk 01:31:43]} {[%emt 00:00:06]} d6 {[%clk
01:30:42]} {[%emt 00:00:32]} 4. Bg2 {[%clk 01:32:06]} {[%emt 00:00:06]} Nf6
{[%clk 01:31:03]} {[%emt 00:00:10]} 5. Nf3 {[%clk 01:32:29]} {[%emt 00:00:07]}
O-O {[%clk 01:31:24]} {[%emt 00:00:09]} 6. Nc3 {[%clk 01:32:43]} {[%emt
00:00:16]} c6 {[%clk 01:28:14]} {[%emt 00:03:41]} 7. O-O {[%clk 01:29:20]}
{[%emt 00:03:52]} Bf5 {[%clk 01:22:33]} {[%emt 00:06:11]} 8. Ne1 {[%clk
01:25:49]} {[%emt 00:04:00]} Qc8 {[%clk 01:21:12]} {[%emt 00:01:53]} 9. e4
{[%clk 01:25:58]} {[%emt 00:00:20]} Bh3 {[%clk 01:21:21]} {[%emt 00:00:20]} 10.
Be3 {[%clk 01:23:51]} {[%emt 00:02:37]} Bxg2 {[%clk 01:21:20]} {[%emt
00:00:32]} 11. Kxg2 {[%clk 01:23:58]} {[%emt 00:00:24]} Re8 {[%clk 01:06:58]}
{[%emt 00:14:52]} 12. Rc1 {[%clk 01:18:12]} {[%emt 00:06:14]} Ng4 {[%clk
00:58:05]} {[%emt 00:09:23]} 13. Nd3 {[%clk 01:03:35]} {[%emt 00:15:08]} c5
{[%clk 00:53:41]} {[%emt 00:04:55]} 14. d5 {[%clk 01:02:25]} {[%emt 00:01:39]}
Nxe3+ {[%clk 00:53:21]} {[%emt 00:00:49]} 15. fxe3 {[%clk 01:02:49]} {[%emt
00:00:08]} Nd7 {[%clk 00:52:13]} {[%emt 00:01:37]} 16. Rf3 {[%clk 00:55:41]}
{[%emt 00:07:37]} a6 {[%clk 00:51:28]} {[%emt 00:01:14]} 17. a4 {[%clk
00:55:05]} {[%emt 00:01:06]} Qc7 {[%clk 00:51:51]} {[%emt 00:00:08]} 18. g4
{[%clk 00:50:32]} {[%emt 00:05:03]} Nb6 {[%clk 00:46:49]} {[%emt 00:05:32]} 19.
b3 {[%clk 00:47:08]} {[%emt 00:03:54]} Nd7 {[%clk 00:46:42]} {[%emt 00:00:37]}
20. g5 {[%clk 00:46:15]} {[%emt 00:01:23]} Qa5 {[%clk 00:46:15]} {[%emt
00:00:56]} 21. Ne2 {[%clk 00:42:57]} {[%emt 00:03:48]} b5 {[%clk 00:46:14]}
{[%emt 00:00:32]} 22. axb5 {[%clk 00:41:33]} {[%emt 00:01:54]} axb5 {[%clk
00:46:38]} {[%emt 00:00:06]} 23. h4 {[%clk 00:35:48]} {[%emt 00:06:14]} bxc4
{[%clk 00:43:03]} {[%emt 00:04:05]} 24. bxc4 {[%clk 00:35:11]} {[%emt
00:01:08]} Qa3 {[%clk 00:40:47]} {[%emt 00:02:46]} 25. h5 {[%clk 00:34:08]}
{[%emt 00:01:33]} Rab8 {[%clk 00:38:20]} {[%emt 00:02:55]} 26. Nef4 {[%clk
00:29:59]} {[%emt 00:04:39]} Rb3 {[%clk 00:35:10]} {[%emt 00:03:41]} 27. hxg6
{[%clk 00:29:12]} {[%emt 00:01:17]} hxg6 {[%clk 00:35:24]} {[%emt 00:00:16]} 28.
Rh3 {[%clk 00:23:12]} {[%emt 00:06:30]} Ne5 {[%clk 00:30:09]} {[%emt 00:05:45]}
29. Nxe5 {[%clk 00:06:20]} {[%emt 00:17:22]} Bxe5 {[%clk 00:27:39]} {[%emt
00:02:59]} 30. Nxg6 {[%clk 00:05:19]} {[%emt 00:01:31]} fxg6 {[%clk 00:25:59]}
{[%emt 00:02:10]} 31. Qe1 {[%clk 00:04:02]} {[%emt 00:01:47]} Qb4 {[%clk
00:22:32]} {[%emt 00:03:58]} 32. Qd1 {[%clk 00:01:05]} {[%emt 00:03:25]} Rb2+
{[%clk 00:22:36]} {[%emt 00:00:28]} 33. Kh1 {[%clk 00:01:01]} {[%emt 00:00:34]}
Qd2 {[%clk 00:22:32]} {[%emt 00:00:34]} 34. Qf1 {[%clk 00:01:22]} {[%emt
00:00:09]} Rf8 {[%clk 00:22:46]} {[%emt 00:00:16]} 35. Qg1 {[%clk 00:01:19]}
{[%emt 00:00:32]} Qd3 {[%clk 00:17:43]} {[%emt 00:05:34]} 36. Rh4 {[%clk
00:00:42]} {[%emt 00:01:06]} Rff2 {[%clk 00:17:28]} {[%emt 00:00:46]} 37. Qe1
{[%clk 00:00:32]} {[%emt 00:00:40]} Rh2+ {[%clk 00:17:32]} {[%emt 00:00:26]} 38.
Rxh2 {[%clk 00:00:54]} {[%emt 00:00:07]} Qxe4+ {[%clk 00:17:41]} {[%emt
00:00:21]} 39. Kg1 {[%clk 00:01:20]} {[%emt 00:00:04]} Bxh2+ {[%clk 00:18:04]}
{[%emt 00:00:07]} 40. Kf1 {[%clk 00:01:48]} {[%emt 00:00:03]} Qh1# {[%clk
00:17:47]} 0-1

[Event "Kvibergspelen 2022"]
[Site "Kviberg Park Hotel & Conference, Krutvagen 2, Gothenburg, Sweden"]
[Date "2022.10.02"]
[Round "8.10"]
[White "Lindahl, Jonas"]
[Black "Hauksson, Hordur Aron"]
[Result "1-0"]
[TimeControl "15 minutes + 5 seconds per move from move one (Round 1 - 4) / 90 minutes + 30 seconds per move from move one (Round 5 - 8)"]
[WhiteFideId "1710060"]
[BlackFideId "2303680"]
[WhiteElo "2165"]
[BlackElo "1882"]

1. e4 {[%clk 01:30:58]} {[%emt 00:00:02]} c5 {[%clk 01:30:55]} {[%emt
00:00:06]} 2. Nf3 {[%clk 01:31:24]} {[%emt 00:00:03]} e6 {[%clk 01:31:03]}
{[%emt 00:00:22]} 3. c3 {[%clk 01:31:44]} {[%emt 00:00:10]} d5 {[%clk
01:29:50]} {[%emt 00:01:43]} 4. e5 {[%clk 01:32:06]} {[%emt 00:00:07]} d4
{[%clk 01:24:37]} {[%emt 00:05:44]} 5. Bb5+ {[%clk 01:32:08]} {[%emt 00:00:28]}
Bd7 {[%clk 01:24:26]} {[%emt 00:00:42]} 6. Bxd7+ {[%clk 01:28:37]} {[%emt
00:04:01]} Qxd7 {[%clk 01:24:34]} {[%emt 00:00:22]} 7. O-O {[%clk 01:28:02]}
{[%emt 00:01:04]} Nc6 {[%clk 01:24:07]} {[%emt 00:00:58]} 8. c4 {[%clk
01:27:09]} {[%emt 00:01:24]} Nge7 {[%clk 01:23:41]} {[%emt 00:00:55]} 9. d3
{[%clk 01:27:17]} {[%emt 00:00:21]} Ng6 {[%clk 01:23:42]} {[%emt 00:00:28]} 10.
Re1 {[%clk 01:27:28]} {[%emt 00:00:19]} Be7 {[%clk 01:23:08]} {[%emt 00:01:05]}
11. Qe2 {[%clk 01:27:07]} {[%emt 00:00:51]} h5 {[%clk 01:19:11]} {[%emt
00:04:26]} 12. h4 {[%clk 01:18:21]} {[%emt 00:09:17]} Bxh4 {[%clk 01:14:06]}
{[%emt 00:05:35]} 13. Nxh4 {[%clk 01:18:39]} {[%emt 00:00:12]} Nxh4 {[%clk
01:14:31]} {[%emt 00:00:06]} 14. Bf4 {[%clk 01:19:01]} {[%emt 00:00:08]} Nf5
{[%clk 01:04:44]} {[%emt 00:10:17]} 15. Nd2 {[%clk 01:16:43]} {[%emt 00:02:47]}
Qe7 {[%clk 01:03:29]} {[%emt 00:01:45]} 16. Ne4 {[%clk 01:16:00]} {[%emt
00:01:12]} b6 {[%clk 00:55:38]} {[%emt 00:08:23]} 17. Qf3 {[%clk 01:12:54]}
{[%emt 00:03:35]} Rc8 {[%clk 00:55:22]} {[%emt 00:00:47]} 18. Qh3 {[%clk
01:09:45]} {[%emt 00:03:38]} Kd7 {[%clk 00:50:00]} {[%emt 00:05:53]} 19. Bg5
{[%clk 01:04:58]} {[%emt 00:05:15]} Qf8 {[%clk 00:50:23]} {[%emt 00:00:08]} 20.
Qh2 {[%clk 01:04:46]} {[%emt 00:00:42]} Nxe5 {[%clk 00:21:39]} {[%emt
00:29:12]} 21. Qxe5 {[%clk 01:03:40]} {[%emt 00:01:37]} Rc6 {[%clk 00:21:04]}
{[%emt 00:01:06]} 22. Bd2 {[%clk 01:00:19]} {[%emt 00:03:52]} f6 {[%clk
00:21:13]} {[%emt 00:00:21]} 23. Qh2 {[%clk 01:00:22]} {[%emt 00:00:26]} g5
{[%clk 00:19:50]} {[%emt 00:01:53]} 24. b4 {[%clk 01:00:13]} {[%emt 00:00:39]}
cxb4 {[%clk 00:19:37]} {[%emt 00:00:43]} 25. Reb1 {[%clk 01:00:16]} {[%emt
00:00:27]} h4 {[%clk 00:16:40]} {[%emt 00:03:28]} 26. Bxb4 {[%clk 00:59:36]}
{[%emt 00:01:09]} Qg7 {[%clk 00:16:46]} {[%emt 00:00:23]} 27. c5 {[%clk
00:54:40]} {[%emt 00:05:26]} g4 {[%clk 00:15:25]} {[%emt 00:01:51]} 28. Be1
{[%clk 00:53:06]} {[%emt 00:02:04]} h3 {[%clk 00:11:26]} {[%emt 00:04:29]} 29.
g3 {[%clk 00:49:57]} {[%emt 00:03:39]} Ne7 {[%clk 00:10:30]} {[%emt 00:01:26]}
30. Rc1 {[%clk 00:44:49]} {[%emt 00:05:38]} f5 {[%clk 00:10:01]} {[%emt
00:00:59]} 31. Nd2 {[%clk 00:45:03]} {[%emt 00:00:15]} Rhc8 {[%clk 00:08:18]}
{[%emt 00:02:13]} 32. Nb3 {[%clk 00:44:58]} {[%emt 00:00:35]} Nd5 {[%clk
00:06:33]} {[%emt 00:02:16]} 33. Rc4 {[%clk 00:43:38]} {[%emt 00:01:50]} e5
{[%clk 00:04:19]} {[%emt 00:02:44]} 34. Qh1 {[%clk 00:40:58]} {[%emt 00:03:09]}
h2+ {[%clk 00:03:23]} {[%emt 00:01:27]} 35. Qxh2 {[%clk 00:41:16]} {[%emt
00:00:12]} b5 {[%clk 00:03:02]} {[%emt 00:00:51]} 36. Rcc1 {[%clk 00:39:57]}
{[%emt 00:01:48]} Rh6 {[%clk 00:02:38]} {[%emt 00:00:53]} 37. Qg2 {[%clk
00:39:42]} {[%emt 00:00:46]} Ke6 {[%clk 00:02:57]} {[%emt 00:00:12]} 38. Bd2
{[%clk 00:38:47]} {[%emt 00:01:25]} Rh3 {[%clk 00:03:01]} {[%emt 00:00:25]} 39.
Nxd4+ {[%clk 00:37:51]} {[%emt 00:01:26]} exd4 {[%clk 00:02:02]} {[%emt
00:01:30]} 40. Re1+ {[%clk 00:37:35]} {[%emt 00:00:45]} Ne3 {[%clk 00:02:22]}
{[%emt 00:00:10]} 41. fxe3 {[%emt 00:02:03]} Qd7 {[%clk 00:01:25]} 42. exd4+
{[%clk 00:36:27]} {[%emt 00:01:32]} Kf6 {[%clk 00:01:47]} {[%emt 00:00:08]} 43.
Bc3 {[%clk 00:34:03]} {[%emt 00:02:55]} Qc7 {[%clk 00:00:43]} {[%emt 00:01:35]}
44. Re5 {[%clk 00:33:31]} {[%emt 00:01:01]} Rch8 {[%clk 00:00:53]} {[%emt
00:00:20]} 45. Rf1 {[%clk 00:32:54]} {[%emt 00:01:07]} R8h5 {[%clk 00:00:36]}
{[%emt 00:00:48]} 46. Bd2 {[%clk 00:30:02]} {[%emt 00:03:21]} 1-0

[Event "Kvibergspelen 2022"]
[Site "Kviberg Park Hotel & Conference, Krutvagen 2, Gothenburg, Sweden"]
[Date "2022.10.02"]
[Round "8.11"]
[White "Bohman Karlholm, Adrian"]
[Black "Grahn, Vidar"]
[Result "1/2-1/2"]
[TimeControl "15 minutes + 5 seconds per move from move one (Round 1 - 4) / 90 minutes + 30 seconds per move from move one (Round 5 - 8)"]
[WhiteFideId "1720643"]
[BlackFideId "1744780"]
[WhiteElo "2117"]
[BlackElo "2054"]

1. d4 {[%clk 01:30:58]} {[%emt 00:00:01]} d5 {[%clk 01:30:57]} {[%emt
00:00:03]} 2. c4 {[%clk 01:31:22]} {[%emt 00:00:06]} c6 {[%clk 01:31:25]}
{[%emt 00:00:03]} 3. Nf3 {[%clk 01:31:43]} {[%emt 00:00:08]} Nf6 {[%clk
01:31:51]} {[%emt 00:00:04]} 4. Nc3 {[%clk 01:32:05]} {[%emt 00:00:08]} e6
{[%clk 01:32:12]} {[%emt 00:00:09]} 5. e3 {[%clk 01:32:27]} {[%emt 00:00:07]}
Nbd7 {[%clk 01:32:36]} {[%emt 00:00:07]} 6. Bd3 {[%clk 01:32:46]} {[%emt
00:00:11]} dxc4 {[%clk 01:29:38]} {[%emt 00:03:29]} 7. Bxc4 {[%clk 01:33:07]}
{[%emt 00:00:08]} b5 {[%clk 01:30:02]} {[%emt 00:00:06]} 8. Bd3 {[%clk
01:33:30]} {[%emt 00:00:07]} Bd6 {[%clk 01:30:12]} {[%emt 00:00:21]} 9. e4
{[%clk 01:20:23]} {[%emt 00:13:36]} e5 {[%clk 01:30:13]} {[%emt 00:00:29]} 10.
a4 {[%clk 01:07:26]} {[%emt 00:13:28]} b4 {[%clk 01:26:34]} {[%emt 00:04:09]}
11. Ne2 {[%clk 01:07:40]} {[%emt 00:00:15]} O-O {[%clk 01:25:57]} {[%emt
00:01:07]} 12. O-O {[%clk 01:07:31]} {[%emt 00:00:39]} a5 {[%clk 01:25:29]}
{[%emt 00:00:58]} 13. Bg5 {[%clk 01:05:38]} {[%emt 00:02:23]} h6 {[%clk
01:23:53]} {[%emt 00:02:06]} 14. Bh4 {[%clk 01:05:03]} {[%emt 00:01:05]} exd4
{[%clk 01:04:03]} {[%emt 00:20:20]} 15. Nexd4 {[%clk 01:01:13]} {[%emt
00:04:19]} Bb7 {[%clk 01:03:40]} {[%emt 00:00:55]} 16. Nf5 {[%clk 00:54:50]}
{[%emt 00:06:52]} Bf4 {[%clk 01:00:18]} {[%emt 00:03:51]} 17. Qc2 {[%clk
00:51:24]} {[%emt 00:03:56]} Qc7 {[%clk 00:56:38]} {[%emt 00:04:12]} 18. Bg3
{[%clk 00:41:54]} {[%emt 00:10:00]} Bxg3 {[%clk 00:56:14]} {[%emt 00:00:54]} 19.
hxg3 {[%clk 00:41:56]} {[%emt 00:00:27]} Ng4 {[%clk 00:53:39]} {[%emt
00:03:05]} 20. Rac1 {[%clk 00:39:28]} {[%emt 00:02:58]} Nge5 {[%clk 00:48:34]}
{[%emt 00:05:35]} 21. Be2 {[%clk 00:36:00]} {[%emt 00:03:58]} Nxf3+ {[%clk
00:39:00]} {[%emt 00:10:04]} 22. gxf3 {[%clk 00:34:53]} {[%emt 00:01:36]} Ba6
{[%clk 00:29:41]} {[%emt 00:09:50]} 23. Bxa6 {[%clk 00:29:43]} {[%emt
00:05:40]} Rxa6 {[%clk 00:30:04]} {[%emt 00:00:07]} 24. Ne7+ {[%clk 00:29:20]}
{[%emt 00:00:52]} Kh8 {[%clk 00:30:30]} {[%emt 00:00:04]} 25. Nxc6 {[%clk
00:29:30]} {[%emt 00:00:20]} Rc8 {[%clk 00:30:46]} {[%emt 00:00:15]} 26. Nxb4
{[%clk 00:29:17]} {[%emt 00:00:43]} Qxc2 {[%clk 00:31:06]} {[%emt 00:00:10]} 27.
Rxc2 {[%clk 00:29:40]} {[%emt 00:00:06]} Rxc2 {[%clk 00:31:23]} {[%emt
00:00:13]} 28. Nxc2 {[%clk 00:30:04]} {[%emt 00:00:06]} Rb6 {[%clk 00:31:33]}
{[%emt 00:00:21]} 29. Rd1 {[%clk 00:26:45]} {[%emt 00:03:47]} Nc5 {[%clk
00:30:43]} {[%emt 00:01:21]} 30. Rd5 {[%clk 00:23:04]} {[%emt 00:04:11]} Nxa4
{[%clk 00:31:00]} {[%emt 00:00:14]} 31. Rxa5 {[%clk 00:23:16]} {[%emt
00:00:17]} Nxb2 {[%clk 00:30:29]} {[%emt 00:01:01]} 32. Rd5 {[%clk 00:22:36]}
{[%emt 00:01:10]} Nc4 {[%clk 00:30:18]} {[%emt 00:00:42]} 33. Rd4 {[%clk
00:22:12]} {[%emt 00:00:54]} Ne5 {[%clk 00:30:23]} {[%emt 00:00:25]} 34. Kg2
{[%clk 00:22:28]} {[%emt 00:00:13]} g6 {[%clk 00:26:56]} {[%emt 00:03:57]} 35.
Ne3 {[%clk 00:22:30]} {[%emt 00:00:29]} Rb7 {[%clk 00:25:43]} {[%emt 00:01:43]}
36. Rd5 {[%clk 00:21:18]} {[%emt 00:01:41]} Nc6 {[%clk 00:25:12]} {[%emt
00:01:01]} 37. f4 {[%clk 00:20:56]} {[%emt 00:00:52]} Kg7 {[%clk 00:23:18]}
{[%emt 00:02:24]} 38. e5 {[%clk 00:18:23]} {[%emt 00:03:04]} Ne7 {[%clk
00:23:24]} {[%emt 00:00:24]} 39. Rd6 {[%clk 00:17:14]} {[%emt 00:01:39]} h5
{[%clk 00:23:34]} {[%emt 00:00:20]} 40. Ra6 {[%clk 00:16:40]} {[%emt 00:01:03]}
Rc7 {[%clk 00:23:24]} {[%emt 00:00:40]} 41. Ra8 {[%clk 00:16:19]} {[%emt
00:00:51]} Rb7 {[%clk 00:23:05]} {[%emt 00:00:49]} 42. Nc4 {[%clk 00:16:20]}
{[%emt 00:00:28]} Nf5 {[%clk 00:22:13]} {[%emt 00:01:23]} 43. Nd2 {[%clk
00:15:04]} {[%emt 00:01:45]} Rb2 {[%clk 00:21:13]} {[%emt 00:01:31]} 44. Rd8
{[%clk 00:15:05]} {[%emt 00:00:29]} Rb4 {[%clk 00:20:06]} {[%emt 00:01:37]} 45.
Nf3 {[%clk 00:14:44]} {[%emt 00:00:50]} h4 {[%clk 00:19:22]} {[%emt 00:01:15]}
46. Rd3 {[%clk 00:08:50]} {[%emt 00:06:24]} 1/2-1/2

[Event "Kvibergspelen 2022"]
[Site "Kviberg Park Hotel & Conference, Krutvagen 2, Gothenburg, Sweden"]
[Date "2022.10.02"]
[Round "8.13"]
[White "Johannesson, Oliver"]
[Black "Eriksson, Joel"]
[Result "1/2-1/2"]
[TimeControl "15 minutes + 5 seconds per move from move one (Round 1 - 4) / 90 minutes + 30 seconds per move from move one (Round 5 - 8)"]
[WhiteTitle "FM"]
[WhiteFideId "2305623"]
[BlackFideId "1729233"]
[WhiteElo "2205"]
[BlackElo "1929"]

1. d4 {[%clk 01:30:55]} {[%emt 00:00:04]} e6 {[%clk 01:30:56]} {[%emt
00:00:05]} 2. c4 {[%clk 01:31:19]} {[%emt 00:00:07]} f5 {[%clk 01:31:20]}
{[%emt 00:00:05]} 3. g3 {[%clk 01:30:51]} {[%emt 00:00:58]} Nf6 {[%clk
01:31:41]} {[%emt 00:00:10]} 4. Bg2 {[%clk 01:31:16]} {[%emt 00:00:04]} Be7
{[%clk 01:31:51]} {[%emt 00:00:19]} 5. Nc3 {[%clk 01:31:34]} {[%emt 00:00:13]}
O-O {[%clk 01:31:53]} {[%emt 00:00:27]} 6. Nf3 {[%clk 01:30:30]} {[%emt
00:01:35]} d6 {[%clk 01:32:14]} {[%emt 00:00:09]} 7. O-O {[%clk 01:30:54]}
{[%emt 00:00:06]} Ne4 {[%clk 01:32:29]} {[%emt 00:00:15]} 8. Qc2 {[%clk
01:28:56]} {[%emt 00:02:31]} Nxc3 {[%clk 01:31:52]} {[%emt 00:01:04]} 9. Qxc3
{[%clk 01:28:14]} {[%emt 00:01:13]} a5 {[%clk 01:31:50]} {[%emt 00:00:32]} 10.
b3 {[%clk 01:27:43]} {[%emt 00:01:01]} Bf6 {[%clk 01:31:40]} {[%emt 00:00:40]}
11. Bb2 {[%clk 01:28:03]} {[%emt 00:00:10]} Nc6 {[%clk 01:28:46]} {[%emt
00:03:24]} 12. Rad1 {[%clk 01:26:37]} {[%emt 00:01:55]} Qe8 {[%clk 01:28:48]}
{[%emt 00:00:28]} 13. Rfe1 {[%clk 01:20:13]} {[%emt 00:06:54]} e5 {[%clk
01:28:08]} {[%emt 00:01:11]} 14. e3 {[%clk 01:17:50]} {[%emt 00:02:53]} Qh5
{[%clk 01:23:56]} {[%emt 00:04:41]} 15. dxe5 {[%clk 01:08:06]} {[%emt
00:10:14]} dxe5 {[%clk 01:23:28]} {[%emt 00:00:57]} 16. Qd2 {[%clk 01:07:11]}
{[%emt 00:01:25]} Be6 {[%clk 01:18:31]} {[%emt 00:05:28]} 17. Qe2 {[%clk
01:05:39]} {[%emt 00:02:02]} Qh6 {[%clk 01:13:05]} {[%emt 00:05:56]} 18. h4
{[%clk 00:56:03]} {[%emt 00:10:05]} Bf7 {[%clk 01:00:18]} {[%emt 00:13:18]} 19.
Ng5 {[%clk 00:50:57]} {[%emt 00:05:36]} Bh5 {[%clk 00:56:21]} {[%emt 00:04:27]}
20. Bf3 {[%clk 00:51:06]} {[%emt 00:00:21]} Bxf3 {[%clk 00:55:52]} {[%emt
00:00:58]} 21. Qxf3 {[%clk 00:50:58]} {[%emt 00:00:38]} e4 {[%clk 00:53:44]}
{[%emt 00:02:39]} 22. Qe2 {[%clk 00:51:18]} {[%emt 00:00:10]} Bxg5 {[%clk
00:50:03]} {[%emt 00:04:11]} 23. hxg5 {[%clk 00:51:41]} {[%emt 00:00:06]} Qxg5
{[%clk 00:50:14]} {[%emt 00:00:20]} 24. Rd7 {[%clk 00:48:49]} {[%emt 00:03:22]}
Rf7 {[%clk 00:50:21]} {[%emt 00:00:23]} 25. Red1 {[%clk 00:46:18]} {[%emt
00:03:00]} Rd8 {[%clk 00:44:56]} {[%emt 00:05:55]} 26. Rxd8+ {[%clk 00:45:56]}
{[%emt 00:00:53]} Nxd8 {[%clk 00:45:18]} {[%emt 00:00:08]} 27. Qd2 {[%clk
00:46:23]} {[%emt 00:00:03]} Nc6 {[%clk 00:44:00]} {[%emt 00:01:48]} 28. Qd5
{[%clk 00:43:35]} {[%emt 00:03:17]} Nb4 {[%clk 00:37:19]} {[%emt 00:07:13]} 29.
Qd8+ {[%clk 00:38:37]} {[%emt 00:05:27]} Qxd8 {[%clk 00:37:29]} {[%emt
00:00:20]} 30. Rxd8+ {[%clk 00:39:06]} {[%emt 00:00:02]} Rf8 {[%clk 00:37:37]}
{[%emt 00:00:22]} 31. Rd7 {[%clk 00:39:32]} {[%emt 00:00:04]} Rf7 {[%clk
00:37:50]} {[%emt 00:00:16]} 32. Rd8+ {[%clk 00:39:53]} {[%emt 00:00:09]}
1/2-1/2